fUSD/lending_fUSD_20240628
["ID","MTS","AMOUNT","RATE_DAILY","PERIOD"]
[330538231,1719561078103,-500.0,0.00019452,2]
[330538232,1719561078113,-500.0,0.00019452,2]
[330538233,1719561078122,-4870.14,0.00019452,2]
[330538234,1719561078133,-966.94,0.00019452,2]
[330538235,1719561078142,-671.55,0.00019452,2]
[330538236,1719561078151,-500.0,0.00019452,2]
[330538237,1719561078160,-500.0,0.00019452,2]
[330538238,1719561078170,-540.72,0.00019452,2]
[330538239,1719561078179,-721.87,0.00019452,2]
[330538240,1719561078189,-500.0,0.00019452,2]
[330538241,1719561078198,-500.0,0.00019452,2]
[330538242,1719561078207,-505.4,0.00019452,2]
[330538243,1719561078216,-500.0,0.00019452,2]
[330538244,1719561078225,-500.0,0.00019452,2]
[330538245,1719561078235,-500.0,0.00019452,2]
[330538246,1719561078244,-1685.84,0.00019452,2]
[330538247,1719561078253,-2147.27,0.00019452,2]
[330538248,1719561078262,-500.0,0.00019452,2]
[330538249,1719561078271,-218.50837295,0.00019452,2]
[330538250,1719561078280,-500.0,0.00019452,2]
[330538251,1719561078289,-574.19,0.00019452,2]
[330538252,1719561078299,-500.0,0.00019452,2]
[330538253,1719561078308,-4610.65,0.00019452,2]
[330538254,1719561078317,-3996.23,0.00019452,2]
[330538255,1719561078327,-500.0,0.00019452,2]
[330538256,1719561078337,-500.0,0.00019452,2]
[330538257,1719561078346,-2065.71,0.00019452,2]
[330538258,1719561078356,-3987.89,0.00019452,2]
[330538259,1719561078367,-587.38,0.00019452,2]
[330538260,1719561078379,-687.46,0.00019452,2]
[330538261,1719561078388,-1330.45,0.00019452,2]
[330538262,1719561078397,-3336.77,0.00019452,2]
[330538263,1719561078406,-500.0,0.00019452,2]
[330538264,1719561078415,-3314.18,0.00019452,2]
[330538265,1719561078425,-500.0,0.00019452,2]
[330538266,1719561078434,-872.41,0.00019452,2]
[330538267,1719561078443,-500.0,0.00019452,2]
[330538268,1719561078453,-810.49,0.00019452,2]
[330538269,1719561078463,-500.0,0.00019452,2]
[330538270,1719561078472,-1974.25,0.00019452,2]
[330538271,1719561078483,-5236.64,0.00019452,2]
[330538272,1719561078492,-642.68,0.00019452,2]
[330538273,1719561078502,-4552.9,0.00019452,2]
[330538274,1719561078511,-32404.44,0.00019452,2]
[330538275,1719561078521,-795.7,0.00019452,2]
[330538276,1719561078530,-24101.78,0.00019452,2]
[330538277,1719561078540,-7764.7,0.00019452,2]
[330538278,1719561078549,-4199.29,0.00019452,2]
[330538279,1719561078559,-694.42,0.00019452,2]
[330538280,1719561078569,-790.32,0.00019452,2]
[330538281,1719561078579,-4218.61,0.00019452,2]
[330538282,1719561078588,-500.0,0.00019452,2]
[330538283,1719561078597,-1450.89,0.00019452,2]
[330538284,1719561078606,-500.0,0.00019452,2]
[330538285,1719561078615,-573.81,0.00019452,2]
[330538286,1719561078624,-922.73,0.00019452,2]
[330538287,1719561078634,-1033.21,0.00019452,2]
[330538288,1719561078643,-717.49,0.00019452,2]
[330538289,1719561078652,-4300.22,0.00019452,2]
[330538290,1719561078662,-897.41,0.00019452,2]
[330538291,1719561078672,-500.0,0.00019452,2]
[330538292,1719561078681,-701.5,0.00019452,2]
[330538293,1719561078690,-776.36,0.00019452,2]
[330538294,1719561078699,-500.0,0.00019452,2]
[330538295,1719561078709,-608.64,0.00019452,2]
[330538296,1719561078719,-500.0,0.00019452,2]
[330538297,1719561078731,-1429.64,0.00019452,2]
[330538298,1719561078740,-500.0,0.00019452,2]
[330538299,1719561078750,-9904.94,0.00019452,2]
[330538300,1719561078759,-640.51,0.00019452,2]
[330538301,1719561078769,-431.83,0.00019452,2]
[330538302,1719561078779,-1577.54,0.00019452,2]
[330538303,1719561078789,-2085.15,0.00019452,2]
[330538304,1719561078799,-930.57,0.00019452,2]
[330538305,1719561078808,-3366.18,0.00019452,2]
[330538306,1719561078817,-500.0,0.00019452,2]
[330538307,1719561078827,-4334.27,0.00019452,2]
[330538308,1719561078841,-1068.95,0.00019452,2]
[330538309,1719561078851,-1596.89,0.00019452,2]
[330538310,1719561078861,-156.24628239,0.00019452,2]
[330538311,1719561078871,-1065.22,0.00019452,2]
[330538312,1719561078883,-1080.72,0.00019452,2]
[330538313,1719561078893,-3797.01,0.00019452,2]
[330538314,1719561078903,-500.0,0.00019452,2]
[330538315,1719561078914,-4588.12,0.00019452,2]
[330538316,1719561078923,-831.79,0.00019452,2]
[330538317,1719561078933,-365.78781787,0.00019548,2]
[330538318,1719561078942,-2730.39769668,0.00019626,2]
[330538319,1719561078952,-907.53,0.00019726,2]
[330538320,1719561078963,-500.0,0.00019726,2]
[330538321,1719561078973,-173.93377337,0.00019726,2]
[330538322,1719561078984,-309.4138511,0.00019726,2]
[330538323,1719561078994,-386.07970716,0.00019726,2]
[330538324,1719561079003,-500.0,0.00019726,2]
[330538325,1719561079012,-500.0,0.00019726,2]
[330538326,1719561079021,-500.0,0.00019726,2]
[330538327,1719561079030,-500.0,0.00019726,2]
[330538328,1719561079040,-500.0,0.00019726,2]
[330538329,1719561079050,-2122.53,0.00019726,2]
[330538330,1719561079059,-1141.96,0.00019726,2]
[330538331,1719561079068,-500.0,0.00019726,2]
[330538332,1719561079078,-1690.68,0.00019726,2]
[330538333,1719561079087,-500.0,0.00019726,2]
[330538334,1719561079097,-870.65,0.00019726,2]
[330538335,1719561079106,-500.0,0.00019726,2]
[330538336,1719561079115,-500.0,0.00019726,2]
[330538337,1719561079124,-503.68,0.00019726,2]
[330538338,1719561079133,-500.0,0.00019726,2]
[330538339,1719561079142,-504.05,0.00019726,2]
[330538340,1719561079151,-846.93,0.00019726,2]
[330538341,1719561079161,-500.0,0.00019726,2]
[330538342,1719561079170,-1149.92,0.00019726,2]
[330538343,1719561079180,-1397.93,0.00019726,2]
[330538344,1719561079189,-1748.17,0.00019726,2]
[330538345,1719561079197,-500.0,0.00019726,2]
[330538346,1719561079207,-542.84,0.00019726,2]
[330538347,1719561079216,-500.0,0.00019726,2]
[330538348,1719561079226,-693.92,0.00019726,2]
[330538349,1719561079237,-500.0,0.00019726,2]
[330538350,1719561079246,-500.0,0.00019726,2]
[330538351,1719561079256,-792.31,0.00019726,2]
[330538352,1719561079265,-416.59428356,0.00019726,2]
[330538353,1719561079275,-1448.94,0.00019726,2]
[330538354,1719561079284,-500.0,0.00019726,2]
[330538355,1719561079294,-908.05,0.00019726,2]
[330538356,1719561079304,-500.0,0.00019726,2]
[330538357,1719561079313,-500.0,0.00019726,2]
[330538358,1719561079323,-500.0,0.00019726,2]
[330538359,1719561079333,-500.0,0.00019726,2]
[330538360,1719561079343,-500.0,0.00019726,2]
[330538361,1719561079352,-500.0,0.00019726,2]
[330538362,1719561079362,-500.0,0.00019726,2]
[330538363,1719561079371,-1782.8,0.00019726,2]
[330538364,1719561079381,-500.0,0.00019726,2]
[330538365,1719561079390,-856.16,0.00019726,2]
[330538366,1719561079400,-500.0,0.00019726,2]
[330538367,1719561079409,-1199.91,0.00019726,2]
[330538368,1719561079419,-539.97,0.00019726,2]
[330538369,1719561079428,-500.0,0.00019726,2]
[330538370,1719561079438,-500.0,0.00019726,2]
[330538371,1719561079447,-1183.51,0.00019726,2]
[330538372,1719561079457,-500.0,0.00019726,2]
[330538373,1719561079466,-1192.41,0.00019726,2]
[330538374,1719561079476,-500.0,0.00019726,2]
[330538375,1719561079486,-2299.92,0.00019726,2]
[330538376,1719561079495,-654.32,0.00019726,2]
[330538377,1719561079505,-500.0,0.00019726,2]
[330538378,1719561079514,-500.0,0.00019726,2]
[330538379,1719561079523,-500.0,0.00019726,2]
[330538380,1719561079533,-673.16,0.00019726,2]
[330538381,1719561079542,-500.0,0.00019726,2]
[330538382,1719561079551,-1135.59,0.00019726,2]
[330538383,1719561079561,-718.46,0.00019726,2]
[330538384,1719561079570,-500.0,0.00019726,2]
[330538385,1719561079579,-500.0,0.00019726,2]
[330538386,1719561079588,-500.0,0.00019726,2]
[330538387,1719561079597,-500.0,0.00019726,2]
[330538388,1719561079607,-500.0,0.00019726,2]
[330538389,1719561079616,-500.0,0.00019726,2]
[330538390,1719561079625,-500.0,0.00019726,2]
[330538391,1719561079635,-828.5,0.00019726,2]
[330538392,1719561079644,-500.0,0.00019726,2]
[330538393,1719561079653,-500.0,0.00019726,2]
[330538394,1719561079662,-500.0,0.00019726,2]
[330538395,1719561079671,-500.0,0.00019726,2]
[330538396,1719561079681,-1470.46,0.00019726,2]
[330538397,1719561079690,-2500.0,0.00019726,3]
[330538398,1719561079699,-568.18,0.00019726,2]
[330538399,1719561079805,-1942.8,0.00019726,2]
[330538400,1719561079814,-500.0,0.00019726,2]
[330538401,1719561079823,-500.0,0.00019726,2]
[330538402,1719561079835,-500.0,0.00019726,2]
[330538403,1719561079845,-559.8,0.00019726,2]
[330538404,1719561079854,-1013.31,0.00019726,2]
[330538405,1719561079864,-500.0,0.00019726,2]
[330538406,1719561079872,-500.0,0.00019726,2]
[330538407,1719561079883,-500.0,0.00019726,2]
[330538408,1719561079892,-500.0,0.00019726,2]
[330538409,1719561079905,-687.15,0.00019726,2]
[330538410,1719561079917,-557.81,0.00019726,2]
[330538411,1719561079928,-500.0,0.00019726,2]
[330538412,1719561079938,-1313.87,0.00019726,2]
[330538413,1719561079947,-500.0,0.00019726,2]
[330538414,1719561079957,-555.71,0.00019726,2]
[330538415,1719561079967,-1142.83,0.00019726,2]
[330538416,1719561079976,-606.98,0.00019726,2]
[330538417,1719561079987,-500.0,0.00019726,2]
[330538418,1719561079997,-1090.69,0.00019726,2]
[330538419,1719561080006,-500.0,0.00019726,2]
[330538420,1719561080016,-500.0,0.00019726,2]
[330538421,1719561080025,-741.97,0.00019726,2]
[330538422,1719561080035,-500.0,0.00019726,2]
[330538423,1719561080046,-500.0,0.00019726,2]
[330538424,1719561080055,-500.0,0.00019726,2]
[330538425,1719561080065,-500.0,0.00019726,2]
[330538426,1719561080076,-833.46,0.00019726,2]
[330538427,1719561080085,-858.42,0.00019726,2]
[330538428,1719561080095,-500.0,0.00019726,2]
[330538429,1719561080104,-784.18,0.00019726,2]
[330538430,1719561080114,-1104.3,0.00019726,2]
[330538431,1719561080124,-500.0,0.00019726,2]
[330538432,1719561080134,-676.3,0.00019726,2]
[330538433,1719561080143,-640.7,0.00019726,2]
[330538434,1719561080152,-547.64,0.00019726,2]
[330538435,1719561080161,-1509.32,0.00019726,2]
[330538436,1719561080172,-775.75,0.00019726,2]
[330538437,1719561080181,-500.0,0.00019726,2]
[330538438,1719561080191,-500.0,0.00019726,2]
[330538439,1719561080200,-500.0,0.00019726,2]
[330538440,1719561080210,-500.0,0.00019726,2]
[330538441,1719561080219,-500.0,0.00019726,2]
[330538442,1719561080229,-500.0,0.00019726,2]
[330538443,1719561080239,-774.67,0.00019726,2]
[330538444,1719561080248,-1251.26,0.00019726,2]
[330538445,1719561080258,-500.0,0.00019726,2]
[330538446,1719561080268,-1975.28,0.00019726,2]
[330538447,1719561080278,-500.0,0.00019726,2]
[330538448,1719561080287,-500.0,0.00019726,2]
[330538449,1719561080297,-704.42,0.00019726,2]
[330538450,1719561080307,-917.85,0.00019726,2]
[330538451,1719561080316,-500.0,0.00019726,2]
[330538452,1719561080326,-1651.77,0.00019726,2]
[330538453,1719561080336,-1425.82,0.00019726,2]
[330538454,1719561080345,-500.0,0.00019726,2]
[330538455,1719561080355,-500.0,0.00019726,2]
[330538456,1719561080365,-500.0,0.00019726,2]
[330538457,1719561080374,-500.0,0.00019726,2]
[330538458,1719561080384,-545.19,0.00019726,2]
[330538459,1719561080394,-575.69,0.00019726,2]
[330538460,1719561080403,-500.0,0.00019726,2]
[330538461,1719561080413,-998.16,0.00019726,2]
[330538462,1719561080423,-500.0,0.00019726,2]
[330538463,1719561080432,-500.0,0.00019726,2]
[330538464,1719561080442,-500.0,0.00019726,2]
[330538465,1719561080451,-500.0,0.00019726,2]
[330538466,1719561080461,-500.0,0.00019726,2]
[330538467,1719561080470,-768.59,0.00019726,2]
[330538468,1719561080479,-586.61,0.00019726,2]
[330538469,1719561080490,-618.73,0.00019726,2]
[330538470,1719561080499,-2391.81,0.00019726,2]
[330538471,1719561080509,-764.56,0.00019726,2]
[330538472,1719561080519,-848.48,0.00019726,2]
[330538473,1719561080528,-500.0,0.00019726,2]
[330538474,1719561080537,-500.0,0.00019726,2]
[330538475,1719561080547,-500.0,0.00019726,2]
[330538476,1719561080557,-1272.64,0.00019726,2]
[330538477,1719561080566,-500.0,0.00019726,2]
[330538478,1719561080576,-688.17,0.00019726,2]
[330538479,1719561080586,-628.0,0.00019726,2]
[330538480,1719561080596,-652.19,0.00019726,2]
[330538481,1719561080606,-500.0,0.00019726,2]
[330538482,1719561080615,-8009.39,0.00019726,2]
[330538483,1719561080625,-500.0,0.00019726,2]
[330538484,1719561080634,-1144.92,0.00019726,2]
[330538485,1719561080644,-500.0,0.00019726,2]
[330538486,1719561080653,-500.0,0.00019726,2]
[330538487,1719561080663,-500.0,0.00019726,2]
[330538488,1719561080673,-3067.21,0.00019726,2]
[330538489,1719561080682,-1469.95,0.00019726,2]
[330538490,1719561080692,-937.69,0.00019726,2]
[330538491,1719561080701,-608.87,0.00019726,2]
[330538492,1719561080711,-530.38,0.00019726,2]
[330538493,1719561080720,-2389.09,0.00019726,2]
[330538494,1719561080732,-698.09,0.00019726,2]
[330538495,1719561080742,-931.89,0.00019726,2]
[330538496,1719561080753,-1828.93,0.00019726,2]
[330538497,1719561080762,-500.0,0.00019726,2]
[330538498,1719561080776,-500.0,0.00019726,2]
[330538499,1719561080786,-205.73443023,0.00019726,2]
[330538500,1719561080796,-2237.48,0.00019726,2]
[330538501,1719561080806,-809.41,0.00019726,2]
[330538502,1719561080816,-548.11,0.00019726,2]
[330538503,1719561080825,-1079.6,0.00019726,2]
[330538504,1719561080837,-844.19,0.00019726,2]
[330538505,1719561080849,-500.0,0.00019726,2]
[330538506,1719561080859,-1576.09,0.00019726,2]
[330538507,1719561080870,-500.0,0.00019726,2]
[330538508,1719561080881,-1489.92,0.00019726,2]
[330538509,1719561080891,-366.67147614,0.00019726,2]
[330538510,1719561080901,-500.0,0.00019726,2]
[330538511,1719561080911,-1957.19,0.00019726,2]
[330538512,1719561080924,-500.0,0.00019726,2]
[330538513,1719561080934,-912.0,0.00019726,2]
[330538514,1719561080944,-500.0,0.00019726,2]
[330538515,1719561080954,-500.0,0.00019726,2]
[330538516,1719561080964,-688.77,0.00019726,2]
[330538517,1719561080974,-2356.49,0.00019726,2]
[330538518,1719561080986,-500.0,0.00019726,2]
[330538519,1719561080995,-2130.37,0.00019726,2]
[330538520,1719561081004,-838.95,0.00019726,2]
[330538521,1719561081013,-500.0,0.00019726,2]
[330538522,1719561081022,-596.16,0.00019726,2]
[330538523,1719561081032,-1793.14,0.00019726,2]
[330538524,1719561081042,-543.6,0.00019726,2]
[330538525,1719561081051,-2016.92,0.00019726,2]
[330538526,1719561081061,-1344.1,0.00019726,2]
[330538527,1719561081071,-500.0,0.00019726,2]
[330538528,1719561081080,-200.0,0.00019726,2]
[330538529,1719561081091,-500.0,0.00019726,2]
[330538530,1719561081100,-2804.61,0.00019726,2]
[330538531,1719561081109,-2335.31,0.00019726,2]
[330538532,1719561081119,-2999.18,0.00019726,2]
[330538533,1719561081128,-966.61,0.00019726,2]
[330538534,1719561081138,-500.0,0.00019726,2]
[330538535,1719561081147,-1555.99,0.00019726,2]
[330538536,1719561081156,-500.0,0.00019726,2]
[330538537,1719561081166,-500.0,0.00019726,2]
[330538538,1719561081175,-1196.1,0.00019726,2]
[330538539,1719561081185,-1299.02,0.00019726,2]
[330538540,1719561081194,-1622.54,0.00019726,2]
[330538541,1719561081204,-1982.91,0.00019726,2]
[330538542,1719561081214,-580.04,0.00019726,2]
[330538543,1719561081223,-500.0,0.00019726,2]
[330538544,1719561081235,-585.72,0.00019726,2]
[330538545,1719561081244,-1835.49,0.00019726,2]
[330538546,1719561081253,-829.04,0.00019726,2]
[330538547,1719561081263,-500.0,0.00019726,2]
[330538548,1719561081272,-500.0,0.00019726,2]
[330538549,1719561081281,-500.0,0.00019726,2]
[330538550,1719561081292,-500.0,0.00019726,2]
[330538551,1719561081303,-500.0,0.00019726,2]
[330538552,1719561081313,-500.0,0.00019726,2]
[330538553,1719561081323,-500.0,0.00019726,2]
[330538554,1719561081332,-500.0,0.00019726,2]
[330538555,1719561081341,-1053.06,0.00019726,2]
[330538556,1719561081350,-2025.35,0.00019726,2]
[330538557,1719561081359,-3299.83,0.00019726,2]
[330538558,1719561081369,-500.0,0.00019726,2]
[330538559,1719561081378,-926.48,0.00019726,2]
[330538560,1719561081388,-2045.94,0.00019726,2]
[330538561,1719561081397,-500.0,0.00019726,2]
[330538562,1719561081406,-520.99,0.00019726,2]
[330538563,1719561081416,-500.0,0.00019726,2]
[330538564,1719561081425,-500.0,0.00019726,2]
[330538565,1719561081435,-500.0,0.00019726,2]
[330538566,1719561081444,-1125.69,0.00019726,2]
[330538567,1719561081453,-500.0,0.00019726,2]
[330538568,1719561081463,-652.91,0.00019726,2]
[330538569,1719561081473,-518.58,0.00019726,2]
[330538570,1719561081483,-515.76,0.00019726,2]
[330538571,1719561081493,-1218.63,0.00019726,2]
[330538572,1719561081502,-764.42,0.00019726,2]
[330538573,1719561081511,-500.0,0.00019726,2]
[330538574,1719561081520,-807.73,0.00019726,2]
[330538575,1719561081531,-500.0,0.00019726,2]
[330538576,1719561081540,-500.0,0.00019726,2]
[330538577,1719561081550,-670.83,0.00019726,2]
[330538578,1719561081560,-500.0,0.00019726,2]
[330538579,1719561081570,-500.0,0.00019726,2]
[330538580,1719561081581,-717.38,0.00019726,2]
[330538581,1719561081590,-1190.64,0.00019726,2]
[330538582,1719561081600,-1228.76,0.00019726,2]
[330538583,1719561081610,-403.66723587,0.00019726,2]
[330538584,1719561081620,-500.0,0.00019726,2]
[330538585,1719561081630,-1204.53,0.00019726,2]
[330538586,1719561081640,-1337.55,0.00019726,2]
[330538587,1719561081650,-4412.5,0.00019726,2]
[330538588,1719561081659,-4811.88,0.00019726,2]
[330538589,1719561081668,-1119.97,0.00019726,2]
[330538590,1719561081678,-500.0,0.00019726,2]
[330538591,1719561081687,-500.0,0.00019726,2]
[330538592,1719561081697,-930.05,0.00019726,2]
[330538593,1719561081706,-1038.25,0.00019726,2]
[330538594,1719561081715,-500.0,0.00019726,2]
[330538595,1719561081725,-500.0,0.00019726,2]
[330538596,1719561081734,-500.0,0.00019726,2]
[330538597,1719561081743,-4473.58,0.00019726,2]
[330538598,1719561081753,-689.91,0.00019726,2]
[330538599,1719561081762,-500.0,0.00019726,2]
[330538600,1719561081771,-500.0,0.00019726,2]
[330538601,1719561081781,-500.0,0.00019726,2]
[330538602,1719561081791,-500.0,0.00019726,2]
[330538603,1719561081802,-500.0,0.00019726,2]
[330538604,1719561081811,-816.16,0.00019726,2]
[330538605,1719561081822,-2445.0,0.00019726,2]
[330538606,1719561081836,-500.0,0.00019726,2]
[330538607,1719561081848,-1090.73,0.00019726,2]
[330538608,1719561081857,-1132.58,0.00019726,2]
[330538609,1719561081867,-615.52,0.00019726,2]
[330538610,1719561081879,-1125.15,0.00019726,2]
[330538611,1719561081888,-500.0,0.00019726,2]
[330538612,1719561081899,-2267.1,0.00019726,2]
[330538613,1719561081910,-500.0,0.00019726,2]
[330538614,1719561081920,-500.0,0.00019726,2]
[330538615,1719561081930,-568.55,0.00019726,2]
[330538616,1719561081939,-500.0,0.00019726,2]
[330538617,1719561081949,-2510.06,0.00019726,2]
[330538618,1719561081958,-724.86,0.00019726,2]
[330538619,1719561081967,-500.0,0.00019726,2]
[330538620,1719561081977,-500.0,0.00019726,2]
[330538621,1719561081987,-759.55,0.00019726,2]
[330538622,1719561081996,-500.0,0.00019726,2]
[330538623,1719561082006,-783.56,0.00019726,2]
[330538624,1719561082015,-1851.28,0.00019726,2]
[330538625,1719561082024,-500.0,0.00019726,2]
[330538626,1719561082033,-500.0,0.00019726,2]
[330538627,1719561082042,-2477.12,0.00019726,2]
[330538628,1719561082051,-2254.48,0.00019726,2]
[330538629,1719561082061,-500.0,0.00019726,2]
[330538630,1719561082070,-2145.27,0.00019726,2]
[330538631,1719561082080,-500.0,0.00019726,2]
[330538632,1719561082089,-500.0,0.00019726,2]
[330538633,1719561082098,-3000.49,0.00019726,2]
[330538634,1719561082107,-1120.11,0.00019726,2]
[330538635,1719561082116,-1339.23,0.00019726,2]
[330538636,1719561082137,-17654.57,0.00019726,2]
[330538637,1719561082147,-1458.45,0.00019726,2]
[330538638,1719561082156,-1203.63,0.00019726,2]
[330538639,1719561082166,-1367.37,0.00019726,2]
[330538640,1719561082175,-780.04,0.00019726,2]
[330538641,1719561082185,-500.0,0.00019726,2]
[330538642,1719561082194,-500.0,0.00019726,2]
[330538643,1719561082203,-500.0,0.00019726,2]
[330538644,1719561082213,-500.0,0.00019726,2]
[330538645,1719561082223,-1038.74,0.00019726,2]
[330538646,1719561082233,-2156.78,0.00019726,2]
[330538647,1719561082243,-500.0,0.00019726,2]
[330538648,1719561082252,-1281.81,0.00019726,2]
[330538649,1719561082262,-500.0,0.00019726,2]
[330538650,1719561082272,-500.0,0.00019726,2]
[330538651,1719561082281,-518.54281454,0.00019726,2]
[330538652,1719561082291,-500.0,0.00019726,2]
[330538653,1719561082300,-707.98,0.00019726,2]
[330538654,1719561082309,-2512.87,0.00019726,2]
[330538655,1719561082319,-500.0,0.00019726,2]
[330538656,1719561082329,-500.0,0.00019726,2]
[330538657,1719561082340,-692.45,0.00019726,2]
[330538658,1719561082349,-500.0,0.00019726,2]
[330538659,1719561082358,-2622.42,0.00019726,2]
[330538660,1719561082367,-1810.79,0.00019726,2]
[330538661,1719561082377,-1233.32,0.00019726,2]
[330538662,1719561082386,-1361.17,0.00019726,2]
[330538663,1719561082396,-1142.92,0.00019726,2]
[330538664,1719561082405,-1277.67,0.00019726,2]
[330538665,1719561082415,-500.0,0.00019726,2]
[330538666,1719561082426,-1346.62,0.00019726,2]
[330538667,1719561082435,-1322.18,0.00019726,2]
[330538668,1719561082444,-552.58,0.00019726,2]
[330538669,1719561082454,-500.0,0.00019726,2]
[330538670,1719561082463,-863.49,0.00019726,2]
[330538671,1719561082473,-2301.13,0.00019726,2]
[330538672,1719561082483,-500.0,0.00019726,2]
[330538673,1719561082492,-4612.82,0.00019726,2]
[330538674,1719561082501,-500.0,0.00019726,2]
[330538675,1719561082511,-500.0,0.00019726,2]
[330538676,1719561082521,-1538.87,0.00019726,2]
[330538677,1719561082531,-1624.52,0.00019726,2]
[330538678,1719561082540,-6138.1,0.00019726,2]
[330538679,1719561082550,-2577.63,0.00019726,2]
[330538680,1719561082559,-500.0,0.00019726,2]
[330538681,1719561082568,-500.0,0.00019726,2]
[330538682,1719561082578,-500.0,0.00019726,2]
[330538683,1719561082587,-1509.29,0.00019726,2]
[330538684,1719561082596,-500.0,0.00019726,2]
[330538685,1719561082606,-500.0,0.00019726,2]
[330538686,1719561082615,-1002.25,0.00019726,2]
[330538687,1719561082625,-1414.89,0.00019726,2]
[330538688,1719561082634,-1820.37,0.00019726,2]
[330538689,1719561082643,-1177.0,0.00019726,2]
[330538690,1719561082653,-1548.23,0.00019726,2]
[330538691,1719561082662,-1324.8,0.00019726,2]
[330538692,1719561082672,-1380.03,0.00019726,2]
[330538693,1719561082681,-500.0,0.00019726,2]
[330538694,1719561082690,-500.0,0.00019726,2]
[330538695,1719561082700,-2472.64,0.00019726,2]
[330538696,1719561082709,-705.74,0.00019726,2]
[330538697,1719561082718,-500.0,0.00019726,2]
[330538698,1719561082728,-5070.88,0.00019726,2]
[330538699,1719561082739,-3381.95,0.00019726,2]
[330538700,1719561082748,-500.0,0.00019726,2]
[330538701,1719561082757,-864.54,0.00019726,2]
[330538702,1719561082767,-2034.01,0.00019726,2]
[330538703,1719561082776,-1396.45,0.00019726,2]
[330538704,1719561082786,-2105.9,0.00019726,2]
[330538705,1719561082796,-500.0,0.00019726,2]
[330538706,1719561082806,-1227.23,0.00019726,2]
[330538707,1719561082816,-500.0,0.00019726,2]
[330538708,1719561082826,-500.0,0.00019726,2]
[330538709,1719561082840,-500.0,0.00019726,2]
[330538710,1719561082850,-448.76329757,0.00019726,2]
[330538711,1719561082860,-1675.94,0.00019726,2]
[330538712,1719561082871,-500.0,0.00019726,2]
[330538713,1719561082882,-1285.82,0.00019726,2]
[330538714,1719561082892,-536.38,0.00019726,2]
[330538715,1719561082901,-500.0,0.00019726,2]
[330538716,1719561082911,-500.0,0.00019726,2]
[330538717,1719561082921,-1080.4,0.00019726,2]
[330538718,1719561082931,-1135.8,0.00019726,2]
[330538719,1719561082939,-1091.76,0.00019726,2]
[330538720,1719561082948,-3936.72,0.00019726,2]
[330538721,1719561082957,-614.98,0.00019726,2]
[330538722,1719561082967,-500.0,0.00019726,2]
[330538723,1719561082976,-500.0,0.00019726,2]
[330538724,1719561082986,-500.0,0.00019726,2]
[330538725,1719561082996,-500.0,0.00019726,2]
[330538726,1719561083005,-500.0,0.00019726,2]
[330538727,1719561083014,-4738.44,0.00019726,2]
[330538728,1719561083023,-1651.05,0.00019726,2]
[330538729,1719561083033,-1956.77,0.00019726,2]
[330538730,1719561083043,-933.08,0.00019726,2]